[Event "Betsys MČR v online bleskovém šachu 2021"]
[Site "Chess.com"]
[Date "2021.04.17"]
[Round "11"]
[White "mravecuk"]
[Black "Paulz64"]
[Result "0-1"]
[WhiteElo "2232"]
[BlackElo "2480"]
[TimeControl "180+1"]
[EndTime "10:48:40 PDT"]
[Termination "Uživatel Paulz64 zvítězil po vzdání soupeře"]

1. d4 {[%clk 0:02:59.9]} 1... Nf6 {[%clk 0:02:59.8]} 2. Nc3 {[%clk 0:02:59.3]}
2... d5 {[%clk 0:02:59]} 3. Bf4 {[%clk 0:02:53.2]} 3... c6 {[%clk 0:02:55.2]} 4.
e3 {[%clk 0:02:52.7]} 4... Bf5 {[%clk 0:02:54.6]} 5. f3 {[%clk 0:02:53]} 5... e6
{[%clk 0:02:53.6]} 6. g4 {[%clk 0:02:52.8]} 6... Bg6 {[%clk 0:02:53.1]} 7. h4
{[%clk 0:02:53.7]} 7... h5 {[%clk 0:02:40.6]} 8. g5 {[%clk 0:02:53.6]} 8... Nfd7
{[%clk 0:02:40.4]} 9. Bd3 {[%clk 0:02:54.5]} 9... Bxd3 {[%clk 0:02:37.5]} 10.
Qxd3 {[%clk 0:02:55.4]} 10... g6 {[%clk 0:02:37.8]} 11. Nge2 {[%clk 0:02:55]}
11... Bg7 {[%clk 0:02:34.6]} 12. O-O-O {[%clk 0:02:54.8]} 12... Na6 {[%clk
0:02:34.2]} 13. e4 {[%clk 0:02:54.6]} 13... Qa5 {[%clk 0:02:30.1]} 14. Kb1
{[%clk 0:02:53.5]} 14... O-O {[%clk 0:02:22.9]} 15. Nc1 {[%clk 0:02:49.4]} 15...
b5 {[%clk 0:02:11.7]} 16. Nb3 {[%clk 0:02:48.6]} 16... Qb6 {[%clk 0:02:11.6]}
17. Bd6 {[%clk 0:02:45.4]} 17... Rfe8 {[%clk 0:01:53.9]} 18. f4 {[%clk
0:02:45.3]} 18... b4 {[%clk 0:01:46.3]} 19. Ne2 {[%clk 0:02:28.8]} 19... c5
{[%clk 0:01:46]} 20. dxc5 {[%clk 0:02:28.8]} 20... Naxc5 {[%clk 0:01:39.9]} 21.
Bxc5 {[%clk 0:02:28.6]} 21... Nxc5 {[%clk 0:01:40.1]} 22. Nxc5 {[%clk
0:02:27.6]} 22... Qxc5 {[%clk 0:01:39.5]} 23. e5 {[%clk 0:02:03.8]} 23... a5
{[%clk 0:01:38.8]} 24. Nd4 {[%clk 0:02:01.2]} 24... a4 {[%clk 0:01:37.9]} 25.
Rh3 {[%clk 0:02:00.1]} 25... Rac8 {[%clk 0:01:28.4]} 26. Qb5 {[%clk 0:01:59.2]}
26... Bf8 {[%clk 0:01:19.8]} 27. Qxa4 {[%clk 0:01:55.3]} 27... Ra8 {[%clk
0:01:18]} 28. Qb3 {[%clk 0:01:54.6]} 28... Reb8 {[%clk 0:01:14.8]} 29. Rhd3
{[%clk 0:01:42.1]} 29... Qc7 {[%clk 0:01:14.3]} 30. c3 {[%clk 0:01:23.2]} 30...
bxc3 {[%clk 0:00:58.4]} 31. Qxc3 {[%clk 0:01:15.9]} 31... Qa7 {[%clk 0:00:57]}
32. a3 {[%clk 0:01:03.5]} 32... Bxa3 {[%clk 0:00:50.6]} 33. R1d2 {[%clk
0:01:03.7]} 33... Bb4 {[%clk 0:00:49.6]} 0-1

[Event "Betsys MČR v online bleskovém šachu 2021"]
[Site "Chess.com"]
[Date "2021.04.17"]
[Round "11"]
[White "Ehlundi"]
[Black "OndrejBorkovec"]
[Result "1-0"]
[WhiteElo "1759"]
[BlackElo "1515"]
[TimeControl "180+1"]
[EndTime "10:48:40 PDT"]
[Termination "Uživatel Ehlundi zvítězil matem"]

1. e4 {[%clk 0:03:00.9]} 1... e6 {[%clk 0:02:57.4]} 2. d4 {[%clk 0:03:00.1]}
2... d5 {[%clk 0:02:56.9]} 3. exd5 {[%clk 0:03:00.1]} 3... exd5 {[%clk 0:02:57]}
4. Nf3 {[%clk 0:03:01]} 4... Bg4 {[%clk 0:02:55.1]} 5. Be2 {[%clk 0:03:01.2]}
5... Nc6 {[%clk 0:02:55]} 6. O-O {[%clk 0:03:01.4]} 6... Qd7 {[%clk 0:02:54.9]}
7. Bf4 {[%clk 0:02:58.3]} 7... O-O-O {[%clk 0:02:54]} 8. Nbd2 {[%clk 0:02:56.5]}
8... Bd6 {[%clk 0:02:52.8]} 9. Bg3 {[%clk 0:02:55.3]} 9... Bxg3 {[%clk
0:02:52.5]} 10. fxg3 {[%clk 0:02:55.6]} 10... h5 {[%clk 0:02:50.8]} 11. c3
{[%clk 0:02:50.8]} 11... Nf6 {[%clk 0:02:44.1]} 12. b4 {[%clk 0:02:51]} 12...
Ne4 {[%clk 0:02:32.3]} 13. Qc2 {[%clk 0:02:27.8]} 13... Nxd2 {[%clk 0:02:14.8]}
14. Qxd2 {[%clk 0:02:26]} 14... Rde8 {[%clk 0:02:14.4]} 15. Bb5 {[%clk
0:02:23.9]} 15... Rh6 {[%clk 0:02:12.5]} 16. Ne5 {[%clk 0:02:22]} 16... Qd6
{[%clk 0:02:08.7]} 17. Nxf7 {[%clk 0:02:19.3]} 17... Qg6 {[%clk 0:01:51.9]} 18.
Nxh6 {[%clk 0:02:17.9]} 18... gxh6 {[%clk 0:01:50.7]} 19. Bxc6 {[%clk
0:02:14.3]} 19... Qxc6 {[%clk 0:01:48.7]} 20. Rae1 {[%clk 0:02:09]} 20... Rxe1
{[%clk 0:01:45.4]} 21. Qxe1 {[%clk 0:02:05]} 21... b6 {[%clk 0:01:44.4]} 22. h3
{[%clk 0:01:56.5]} 22... Bd7 {[%clk 0:01:39.9]} 23. Qe3 {[%clk 0:01:51.1]} 23...
Qc4 {[%clk 0:01:37.3]} 24. a3 {[%clk 0:01:46.4]} 24... Qb3 {[%clk 0:01:36.7]}
25. Qe5 {[%clk 0:01:40.7]} 25... Qxa3 {[%clk 0:01:34.4]} 26. Rf8+ {[%clk
0:01:37.8]} 26... Kb7 {[%clk 0:01:33.9]} 27. Qxd5+ {[%clk 0:01:38.2]} 27... Bc6
{[%clk 0:01:33.4]} 28. Qd8 {[%clk 0:01:35.1]} 28... Ka6 {[%clk 0:01:30.2]} 29.
Qxc7 {[%clk 0:01:27.1]} 29... Qc1+ {[%clk 0:01:29.6]} 30. Kh2 {[%clk 0:01:26.5]}
30... Qxc3 {[%clk 0:01:29.3]} 31. Qc8+ {[%clk 0:01:16.8]} 31... Kb5 {[%clk
0:01:29.1]} 32. Qf5+ {[%clk 0:01:09.3]} 32... Kxb4 {[%clk 0:01:27.8]} 33. Rc8
{[%clk 0:01:08.6]} 33... a5 {[%clk 0:01:18.8]} 34. d5 {[%clk 0:01:05.3]} 34...
a4 {[%clk 0:01:15.3]} 35. Rxc6 {[%clk 0:01:04.8]} 35... Qd4 {[%clk 0:01:14.2]}
36. Qb1+ {[%clk 0:01:03.6]} 36... Ka5 {[%clk 0:01:13.3]} 37. Qa2 {[%clk
0:00:59.9]} 37... b5 {[%clk 0:01:11.3]} 38. d6 {[%clk 0:00:56.3]} 38... b4
{[%clk 0:01:09.4]} 39. Qc2 {[%clk 0:00:54]} 39... a3 {[%clk 0:01:06.6]} 40. Qc5+
{[%clk 0:00:51.7]} 40... Ka4 {[%clk 0:01:06.5]} 41. Qxd4 {[%clk 0:00:51.1]}
41... a2 {[%clk 0:01:05]} 42. Ra6+ {[%clk 0:00:48.9]} 42... Kb3 {[%clk
0:01:04.9]} 43. Qd3+ {[%clk 0:00:48.9]} 43... Kb2 {[%clk 0:01:04.8]} 44. Qd2+
{[%clk 0:00:49.2]} 44... Ka1 {[%clk 0:01:04.6]} 45. Qxa2# {[%clk 0:00:48.6]} 1-0

[Event "Betsys MČR v online bleskovém šachu 2021"]
[Site "Chess.com"]
[Date "2021.04.17"]
[Round "11"]
[White "Jindrich4321"]
[Black "Lipican"]
[Result "0-1"]
[WhiteElo "1930"]
[BlackElo "2112"]
[TimeControl "180+1"]
[EndTime "10:48:41 PDT"]
[Termination "Uživatel Lipican zvítězil po vzdání soupeře"]

1. d4 {[%clk 0:03:00.9]} 1... Nf6 {[%clk 0:02:59.2]} 2. c4 {[%clk 0:03:00]} 2...
e6 {[%clk 0:02:58.6]} 3. Nc3 {[%clk 0:02:59.8]} 3... Bb4 {[%clk 0:02:57.6]} 4.
Bg5 {[%clk 0:02:59.4]} 4... c5 {[%clk 0:02:55.3]} 5. d5 {[%clk 0:02:58.8]} 5...
Bxc3+ {[%clk 0:02:54.1]} 6. bxc3 {[%clk 0:02:57.9]} 6... d6 {[%clk 0:02:53.9]}
7. f3 {[%clk 0:02:55]} 7... e5 {[%clk 0:02:53.6]} 8. e4 {[%clk 0:02:52.4]} 8...
Nbd7 {[%clk 0:02:52.3]} 9. Bd3 {[%clk 0:02:51.4]} 9... Qe7 {[%clk 0:02:50.6]}
10. Ne2 {[%clk 0:02:46.2]} 10... h6 {[%clk 0:02:50.1]} 11. Bh4 {[%clk
0:02:43.2]} 11... b6 {[%clk 0:02:49.5]} 12. O-O {[%clk 0:02:41.5]} 12... g5
{[%clk 0:02:48]} 13. Bf2 {[%clk 0:02:36.5]} 13... Kd8 {[%clk 0:02:47.5]} 14. a4
{[%clk 0:02:27.6]} 14... a5 {[%clk 0:02:46.4]} 15. Rb1 {[%clk 0:02:22.1]} 15...
Kc7 {[%clk 0:02:45.2]} 16. Ng3 {[%clk 0:02:19.8]} 16... Nf8 {[%clk 0:02:43]} 17.
Rb3 {[%clk 0:02:07.4]} 17... Bd7 {[%clk 0:02:38.3]} 18. Rb2 {[%clk 0:02:03.6]}
18... Ng6 {[%clk 0:02:36.8]} 19. Qd2 {[%clk 0:01:56.2]} 19... Nf4 {[%clk
0:02:35]} 20. Rfb1 {[%clk 0:01:53.6]} 20... Rab8 {[%clk 0:02:32.5]} 21. Nf5
{[%clk 0:01:50.8]} 21... Bxf5 {[%clk 0:02:29.3]} 22. exf5 {[%clk 0:01:49.8]}
22... Qd7 {[%clk 0:02:21]} 23. Bc2 {[%clk 0:01:45.2]} 23... h5 {[%clk
0:02:18.7]} 24. Be3 {[%clk 0:01:38]} 24... h4 {[%clk 0:02:12.9]} 25. Kf2 {[%clk
0:01:29.9]} 25... Rhg8 {[%clk 0:02:09.7]} 26. h3 {[%clk 0:01:28.9]} 26... N6h5
{[%clk 0:02:07.5]} 27. Qe1 {[%clk 0:01:08]} 27... Ng3 {[%clk 0:02:04.3]} 28. Bd2
{[%clk 0:01:00.7]} 28... f6 {[%clk 0:01:54.9]} 29. Be3 {[%clk 0:00:57.6]} 29...
Nxf5 {[%clk 0:01:49.9]} 30. Bxf4 {[%clk 0:00:40.6]} 30... gxf4 {[%clk
0:01:33.9]} 31. Bxf5 {[%clk 0:00:37]} 31... Qxf5 {[%clk 0:01:32.3]} 32. Qe4
{[%clk 0:00:32.9]} 32... Qxe4 {[%clk 0:01:25.1]} 33. fxe4 {[%clk 0:00:31.9]}
33... Rg3 {[%clk 0:01:25.5]} 34. Rc2 {[%clk 0:00:28.5]} 34... Re3 {[%clk
0:01:21.7]} 35. Re1 {[%clk 0:00:25.4]} 35... Rxe1 {[%clk 0:01:20.2]} 36. Kxe1
{[%clk 0:00:24.5]} 36... Rg8 {[%clk 0:01:19.8]} 37. Kf2 {[%clk 0:00:21.2]} 37...
Rg3 {[%clk 0:01:18.6]} 0-1

[Event "Betsys MČR v online bleskovém šachu 2021"]
[Site "Chess.com"]
[Date "2021.04.17"]
[Round "11"]
[White "Countryside_58"]
[Black "Naty139"]
[Result "1-0"]
[WhiteElo "2413"]
[BlackElo "2219"]
[TimeControl "180+1"]
[EndTime "10:48:43 PDT"]
[Termination "Uživatel Countryside_58 zvítězil na čas"]

1. h4 {[%clk 0:03:00.2]} 1... d5 {[%clk 0:02:56.2]} 2. h5 {[%clk 0:03:01.1]}
2... h6 {[%clk 0:02:54.6]} 3. d4 {[%clk 0:03:00.1]} 3... Nf6 {[%clk 0:02:52.1]}
4. Nf3 {[%clk 0:03:00]} 4... c5 {[%clk 0:02:49.6]} 5. c3 {[%clk 0:02:59.4]} 5...
cxd4 {[%clk 0:02:46.9]} 6. cxd4 {[%clk 0:02:58.8]} 6... Nc6 {[%clk 0:02:47.2]}
7. Nc3 {[%clk 0:02:59]} 7... Bg4 {[%clk 0:02:46.8]} 8. Ne5 {[%clk 0:02:59.1]}
8... Be6 {[%clk 0:02:31]} 9. Bf4 {[%clk 0:02:56.4]} 9... Qa5 {[%clk 0:02:25]}
10. e3 {[%clk 0:02:47.1]} 10... Ne4 {[%clk 0:02:21.8]} 11. Qb3 {[%clk
0:02:29.9]} 11... Nxc3 {[%clk 0:02:07.3]} 12. bxc3 {[%clk 0:02:26.8]} 12... Nxe5
{[%clk 0:01:34.9]} 13. Bxe5 {[%clk 0:02:25.6]} 13... Rc8 {[%clk 0:01:34.8]} 14.
Rc1 {[%clk 0:02:23.6]} 14... Qb6 {[%clk 0:01:31.7]} 15. Bb5+ {[%clk 0:02:22.8]}
15... Bd7 {[%clk 0:01:31.1]} 16. Bxd7+ {[%clk 0:02:22.3]} 16... Kxd7 {[%clk
0:01:31.3]} 17. Qxd5+ {[%clk 0:02:22.4]} 17... Ke8 {[%clk 0:01:30.5]} 18. O-O
{[%clk 0:02:17.6]} 18... e6 {[%clk 0:01:30.3]} 19. Qb3 {[%clk 0:02:17.1]} 19...
Qxb3 {[%clk 0:01:29.7]} 20. axb3 {[%clk 0:02:16.7]} 20... f6 {[%clk 0:01:30.2]}
21. Bf4 {[%clk 0:02:14.4]} 21... a5 {[%clk 0:01:28.7]} 22. c4 {[%clk 0:02:14.2]}
22... Bb4 {[%clk 0:01:27.6]} 23. Rfd1 {[%clk 0:02:14]} 23... Kf7 {[%clk
0:01:25.4]} 24. e4 {[%clk 0:02:14]} 24... g5 {[%clk 0:01:15.6]} 25. hxg6+ {[%clk
0:02:12.4]} 25... Kxg6 {[%clk 0:01:16.5]} 26. d5 {[%clk 0:02:12.1]} 26... e5
{[%clk 0:01:16.6]} 27. Bd2 {[%clk 0:02:12.1]} 27... Bc5 {[%clk 0:01:05.8]} 28.
Bxa5 {[%clk 0:02:09.6]} 28... b6 {[%clk 0:01:03.3]} 29. Bd2 {[%clk 0:02:07.8]}
29... Rhg8 {[%clk 0:00:54.7]} 30. Kf1 {[%clk 0:02:07.4]} 30... f5 {[%clk
0:00:52]} 31. exf5+ {[%clk 0:02:04.2]} 31... Kxf5 {[%clk 0:00:52.9]} 32. Rc3
{[%clk 0:01:51.6]} 32... Rcf8 {[%clk 0:00:30.3]} 33. Rf3+ {[%clk 0:01:49.9]}
33... Kg6 {[%clk 0:00:29.6]} 34. Rxf8 {[%clk 0:01:38.2]} 34... Rxf8 {[%clk
0:00:30.5]} 35. Be1 {[%clk 0:01:38.5]} 35... Kf5 {[%clk 0:00:27.1]} 36. Ke2
{[%clk 0:01:38.5]} 36... e4 {[%clk 0:00:22.7]} 37. Bd2 {[%clk 0:01:37.6]} 37...
Kg6 {[%clk 0:00:21.1]} 38. Be3 {[%clk 0:01:36.7]} 1-0

[Event "Betsys MČR v online bleskovém šachu 2021"]
[Site "Chess.com"]
[Date "2021.04.17"]
[Round "11"]
[White "Millbo64"]
[Black "zarathutra"]
[Result "0-1"]
[WhiteElo "1975"]
[BlackElo "1818"]
[TimeControl "180+1"]
[EndTime "10:48:43 PDT"]
[Termination "Uživatel zarathutra zvítězil po vzdání soupeře"]

1. e4 {[%clk 0:03:00.9]} 1... e5 {[%clk 0:02:59.2]} 2. f4 {[%clk 0:03:00.5]}
2... exf4 {[%clk 0:02:57.3]} 3. Nf3 {[%clk 0:03:00.8]} 3... d6 {[%clk
0:02:57.6]} 4. Bc4 {[%clk 0:02:59.4]} 4... h6 {[%clk 0:02:57.3]} 5. d4 {[%clk
0:02:58.2]} 5... g5 {[%clk 0:02:57.4]} 6. O-O {[%clk 0:02:53.7]} 6... Bg7 {[%clk
0:02:55.4]} 7. Nc3 {[%clk 0:02:49.5]} 7... Nc6 {[%clk 0:02:55]} 8. Bb5 {[%clk
0:02:44.5]} 8... Bd7 {[%clk 0:02:52.7]} 9. Bxc6 {[%clk 0:02:42.5]} 9... Bxc6
{[%clk 0:02:48]} 10. d5 {[%clk 0:02:41.4]} 10... Bd7 {[%clk 0:02:45.3]} 11. Re1
{[%clk 0:02:36.2]} 11... Bg4 {[%clk 0:02:44.5]} 12. Qd3 {[%clk 0:02:34.3]} 12...
Bxf3 {[%clk 0:02:41.4]} 13. Qxf3 {[%clk 0:02:30.8]} 13... Ne7 {[%clk 0:02:39.2]}
14. Qd3 {[%clk 0:02:29.4]} 14... Ng6 {[%clk 0:02:38.2]} 15. Qb5+ {[%clk
0:02:23.1]} 15... Qd7 {[%clk 0:02:36.4]} 16. Qxb7 {[%clk 0:02:19.5]} 16... O-O
{[%clk 0:02:33.6]} 17. Qc6 {[%clk 0:02:18.2]} 17... Qxc6 {[%clk 0:02:32.8]} 18.
dxc6 {[%clk 0:02:18.6]} 18... Bxc3 {[%clk 0:02:29.9]} 19. bxc3 {[%clk
0:02:18.5]} 19... Ne5 {[%clk 0:02:30.5]} 20. Rb1 {[%clk 0:02:13.3]} 20... Rfb8
{[%clk 0:02:27.2]} 21. Ba3 {[%clk 0:02:01.6]} 21... Nxc6 {[%clk 0:02:26]} 22.
Kf2 {[%clk 0:01:55.3]} 22... Ne5 {[%clk 0:02:24.6]} 23. Rb3 {[%clk 0:01:45.5]}
23... Nc4 {[%clk 0:02:15.7]} 24. Bc1 {[%clk 0:01:42.7]} 24... Rb6 {[%clk
0:02:12.9]} 25. Rd1 {[%clk 0:01:42.4]} 25... Re8 {[%clk 0:02:11.1]} 26. Rd4
{[%clk 0:01:41.6]} 26... Ne5 {[%clk 0:01:58.7]} 27. Ba3 {[%clk 0:01:29.5]} 27...
Nc6 {[%clk 0:01:43]} 28. Ra4 {[%clk 0:01:26]} 28... a5 {[%clk 0:01:31.4]} 29.
Rxb6 {[%clk 0:01:20.4]} 29... cxb6 {[%clk 0:01:31.5]} 30. Bxd6 {[%clk
0:01:20.1]} 30... b5 {[%clk 0:01:31.5]} 31. Ra3 {[%clk 0:01:12.4]} 31... Rxe4
{[%clk 0:01:23.1]} 32. Bc7 {[%clk 0:01:10.9]} 32... a4 {[%clk 0:01:22.2]} 33.
Kf3 {[%clk 0:01:03.7]} 33... Rc4 {[%clk 0:01:22.2]} 34. Bd6 {[%clk 0:00:57.2]}
34... f5 {[%clk 0:01:21.4]} 35. Ke2 {[%clk 0:00:55.3]} 35... Kf7 {[%clk
0:01:19.8]} 36. Kd3 {[%clk 0:00:53.5]} 36... Ke6 {[%clk 0:01:09.5]} 37. Bf8
{[%clk 0:00:49.8]} 37... h5 {[%clk 0:01:08.8]} 38. h3 {[%clk 0:00:49.8]} 38...
g4 {[%clk 0:01:08.4]} 39. Bg7 {[%clk 0:00:47.6]} 39... f3 {[%clk 0:01:04.8]} 40.
gxf3 {[%clk 0:00:45.6]} 40... gxh3 {[%clk 0:01:04.5]} 41. Bd4 {[%clk 0:00:42.2]}
41... h2 {[%clk 0:01:04.3]} 0-1

[Event "Betsys MČR v online bleskovém šachu 2021"]
[Site "Chess.com"]
[Date "2021.04.17"]
[Round "11"]
[White "iDarkTraveler"]
[Black "JustFilip05"]
[Result "0-1"]
[WhiteElo "1942"]
[BlackElo "2120"]
[TimeControl "180+1"]
[EndTime "10:48:47 PDT"]
[Termination "Uživatel JustFilip05 zvítězil po vzdání soupeře"]

1. d4 {[%clk 0:02:55.4]} 1... Nf6 {[%clk 0:02:54.9]} 2. Nf3 {[%clk 0:02:48]}
2... g6 {[%clk 0:02:55.8]} 3. Bf4 {[%clk 0:02:47.1]} 3... Bg7 {[%clk 0:02:54.8]}
4. e3 {[%clk 0:02:47.5]} 4... d6 {[%clk 0:02:55.2]} 5. Be2 {[%clk 0:02:45.1]}
5... O-O {[%clk 0:02:54.9]} 6. O-O {[%clk 0:02:44.8]} 6... Nbd7 {[%clk
0:02:55.1]} 7. h3 {[%clk 0:02:45.1]} 7... b6 {[%clk 0:02:54.7]} 8. c3 {[%clk
0:02:45.2]} 8... Bb7 {[%clk 0:02:54.7]} 9. Nbd2 {[%clk 0:02:44.8]} 9... Re8
{[%clk 0:02:54]} 10. e4 {[%clk 0:02:43.2]} 10... Nxe4 {[%clk 0:02:52.6]} 11. Re1
{[%clk 0:02:37.6]} 11... Nxd2 {[%clk 0:02:51.1]} 12. Qxd2 {[%clk 0:02:38.5]}
12... e5 {[%clk 0:02:49.8]} 13. Bh6 {[%clk 0:02:36.8]} 13... exd4 {[%clk
0:02:47.6]} 14. Bxg7 {[%clk 0:02:36.4]} 14... Kxg7 {[%clk 0:02:47.9]} 15. Nxd4
{[%clk 0:02:29.3]} 15... Qf6 {[%clk 0:02:42.4]} 16. Bf3 {[%clk 0:02:19.2]} 16...
Bxf3 {[%clk 0:02:41.3]} 17. Nxf3 {[%clk 0:02:20.1]} 17... Ne5 {[%clk 0:02:39.6]}
18. Nd4 {[%clk 0:02:12.3]} 18... c5 {[%clk 0:02:35.1]} 19. Nb5 {[%clk
0:02:08.2]} 19... Re7 {[%clk 0:02:32.1]} 20. Qxd6 {[%clk 0:02:04.6]} 20... Qxd6
{[%clk 0:02:29.5]} 21. Nxd6 {[%clk 0:02:05.5]} 21... Rd8 {[%clk 0:02:29.3]} 22.
Nc4 {[%clk 0:01:52.3]} 22... Rde8 {[%clk 0:02:22.2]} 23. Nxe5 {[%clk 0:01:33.3]}
23... Rxe5 {[%clk 0:02:23.1]} 24. Rxe5 {[%clk 0:01:30.6]} 24... Rxe5 {[%clk
0:02:24]} 25. Kf1 {[%clk 0:01:31.5]} 25... Rd5 {[%clk 0:02:07.6]} 26. Ke2 {[%clk
0:01:30.6]} 26... Re5+ {[%clk 0:02:07.4]} 27. Kd3 {[%clk 0:01:29.7]} 27... Rd5+
{[%clk 0:02:08.1]} 28. Ke3 {[%clk 0:01:29.5]} 28... Re5+ {[%clk 0:02:08.3]} 29.
Kf3 {[%clk 0:01:28.9]} 29... Kf6 {[%clk 0:02:08]} 30. Rd1 {[%clk 0:01:25]} 30...
Ke7 {[%clk 0:02:08.4]} 31. c4 {[%clk 0:01:22.2]} 31... Rf5+ {[%clk 0:02:07.9]}
32. Ke3 {[%clk 0:01:19.2]} 32... Re5+ {[%clk 0:02:08]} 33. Kf4 {[%clk
0:01:18.5]} 33... Re2 {[%clk 0:02:07.2]} 34. Kf3 {[%clk 0:01:01.3]} 34... Rxb2
{[%clk 0:02:07.1]} 35. Re1+ {[%clk 0:01:01.6]} 35... Kf6 {[%clk 0:02:07.1]} 36.
Ra1 {[%clk 0:00:53.3]} 36... Rc2 {[%clk 0:02:07.4]} 37. a4 {[%clk 0:00:53.5]}
37... Rxc4 {[%clk 0:02:07.6]} 38. a5 {[%clk 0:00:54.4]} 38... b5 {[%clk
0:02:07.6]} 39. a6 {[%clk 0:00:51.6]} 39... Ra4 {[%clk 0:02:07.5]} 40. Rb1
{[%clk 0:00:50.9]} 40... b4 {[%clk 0:02:06.2]} 41. Rc1 {[%clk 0:00:49.5]} 41...
Ra5 {[%clk 0:02:05]} 42. Ke4 {[%clk 0:00:49.5]} 42... Ke6 {[%clk 0:02:05.4]} 43.
f4 {[%clk 0:00:39.1]} 43... f6 {[%clk 0:02:05.4]} 44. g4 {[%clk 0:00:39]} 44...
f5+ {[%clk 0:02:05.4]} 45. Kd3 {[%clk 0:00:37.7]} 45... Kd5 {[%clk 0:02:05.5]}
46. gxf5 {[%clk 0:00:37.3]} 46... gxf5 {[%clk 0:02:05.5]} 47. Re1 {[%clk
0:00:34.9]} 47... Ra3+ {[%clk 0:02:04]} 48. Kc2 {[%clk 0:00:33.9]} 48... Rxa6
{[%clk 0:02:03.7]} 49. Re5+ {[%clk 0:00:33.7]} 49... Kc4 {[%clk 0:02:04.1]} 50.
Rxf5 {[%clk 0:00:33.4]} 50... Ra2+ {[%clk 0:02:02.7]} 51. Kb1 {[%clk 0:00:29.8]}
51... Rh2 {[%clk 0:02:03.6]} 52. Rh5 {[%clk 0:00:20.4]} 52... Kb3 {[%clk
0:02:03.6]} 53. Kc1 {[%clk 0:00:20.2]} 53... c4 {[%clk 0:02:02.6]} 54. Rxh7
{[%clk 0:00:18.9]} 54... c3 {[%clk 0:02:02.6]} 55. Kd1 {[%clk 0:00:16.7]} 55...
c2+ {[%clk 0:02:02.9]} 0-1

[Event "Betsys MČR v online bleskovém šachu 2021"]
[Site "Chess.com"]
[Date "2021.04.17"]
[Round "11"]
[White "Ami2013"]
[Black "VOJTASEK2009"]
[Result "0-1"]
[WhiteElo "499"]
[BlackElo "1277"]
[TimeControl "180+1"]
[EndTime "10:48:50 PDT"]
[Termination "Uživatel VOJTASEK2009 zvítězil matem"]

1. e4 {[%clk 0:03:00.9]} 1... e5 {[%clk 0:02:57.1]} 2. Nf3 {[%clk 0:02:57.2]}
2... Nc6 {[%clk 0:02:56.6]} 3. Bb5 {[%clk 0:02:53.5]} 3... d6 {[%clk 0:02:55.3]}
4. Nc3 {[%clk 0:02:45.3]} 4... Bg4 {[%clk 0:02:52.5]} 5. O-O {[%clk 0:02:36.8]}
5... Nf6 {[%clk 0:02:52.2]} 6. h3 {[%clk 0:02:30.2]} 6... Bh5 {[%clk 0:02:50.3]}
7. d3 {[%clk 0:02:24.6]} 7... Be7 {[%clk 0:02:49.5]} 8. Nd5 {[%clk 0:02:20.3]}
8... a6 {[%clk 0:02:43.8]} 9. Ba4 {[%clk 0:02:12.5]} 9... b5 {[%clk 0:02:37.8]}
10. Nxf6+ {[%clk 0:02:04.3]} 10... Bxf6 {[%clk 0:02:35.8]} 11. Bb3 {[%clk
0:02:02.4]} 11... O-O {[%clk 0:02:33.3]} 12. Bd5 {[%clk 0:01:59.5]} 12... Qd7
{[%clk 0:02:31]} 13. c4 {[%clk 0:01:47.5]} 13... bxc4 {[%clk 0:02:25.6]} 14.
dxc4 {[%clk 0:01:44.3]} 14... Rab8 {[%clk 0:02:22.6]} 15. Bxc6 {[%clk 0:01:38]}
15... Qxc6 {[%clk 0:02:18.9]} 16. g4 {[%clk 0:01:27.1]} 16... Bg6 {[%clk
0:02:16]} 17. Ng5 {[%clk 0:01:18.6]} 17... Bxg5 {[%clk 0:02:12.6]} 18. Bxg5
{[%clk 0:01:14.4]} 18... Bxe4 {[%clk 0:02:06.1]} 19. h4 {[%clk 0:00:54.8]} 19...
Rxb2 {[%clk 0:01:56.6]} 20. h5 {[%clk 0:00:51.2]} 20... Qxc4 {[%clk 0:01:37.3]}
21. h6 {[%clk 0:00:44.3]} 21... g6 {[%clk 0:01:33.4]} 22. Rc1 {[%clk 0:00:24.1]}
22... Qxa2 {[%clk 0:01:25.4]} 23. Ra1 {[%clk 0:00:12.3]} 23... Qc4 {[%clk
0:01:19.9]} 24. f3 {[%clk 0:00:09.6]} 24... Qc5+ {[%clk 0:01:01.9]} 25. Rf2
{[%clk 0:00:07.8]} 25... Qxf2+ {[%clk 0:00:59.9]} 26. Kh1 {[%clk 0:00:02]} 26...
Qh2# {[%clk 0:00:59.3]} 0-1

[Event "Betsys MČR v online bleskovém šachu 2021"]
[Site "Chess.com"]
[Date "2021.04.17"]
[Round "11"]
[White "Mikulas19"]
[Black "Drak1961"]
[Result "0-1"]
[WhiteElo "1890"]
[BlackElo "2075"]
[TimeControl "180+1"]
[EndTime "10:48:52 PDT"]
[Termination "Uživatel Drak1961 zvítězil matem"]

1. e4 {[%clk 0:03:00.9]} 1... c5 {[%clk 0:02:59.1]} 2. Nf3 {[%clk 0:02:58.7]}
2... Nc6 {[%clk 0:02:58.6]} 3. d4 {[%clk 0:02:57.9]} 3... cxd4 {[%clk
0:02:58.7]} 4. Nxd4 {[%clk 0:02:57.4]} 4... Nf6 {[%clk 0:02:58.6]} 5. Nc3 {[%clk
0:02:57.1]} 5... e5 {[%clk 0:02:57.7]} 6. Ndb5 {[%clk 0:02:57.2]} 6... d6 {[%clk
0:02:57.8]} 7. Bg5 {[%clk 0:02:36.1]} 7... a6 {[%clk 0:02:56.4]} 8. Na3 {[%clk
0:02:36.2]} 8... b5 {[%clk 0:02:55.8]} 9. Nd5 {[%clk 0:02:36]} 9... Be7 {[%clk
0:02:55.8]} 10. Bxf6 {[%clk 0:02:36]} 10... Bxf6 {[%clk 0:02:53.8]} 11. c3
{[%clk 0:02:36.1]} 11... O-O {[%clk 0:02:52.7]} 12. Nc2 {[%clk 0:02:35.6]} 12...
Rb8 {[%clk 0:02:48.2]} 13. Bd3 {[%clk 0:02:32.1]} 13... Bg5 {[%clk 0:02:44.2]}
14. O-O {[%clk 0:02:24.8]} 14... g6 {[%clk 0:02:42.6]} 15. a4 {[%clk 0:02:15.4]}
15... bxa4 {[%clk 0:02:37.1]} 16. Rxa4 {[%clk 0:02:10.4]} 16... Rxb2 {[%clk
0:02:34.6]} 17. Bxa6 {[%clk 0:02:04.2]} 17... Be6 {[%clk 0:02:16.4]} 18. Nce3
{[%clk 0:01:43.3]} 18... f5 {[%clk 0:02:10.9]} 19. Qa1 {[%clk 0:01:32.8]} 19...
Rb8 {[%clk 0:02:05.1]} 20. Bc4 {[%clk 0:01:25.3]} 20... fxe4 {[%clk 0:01:57.4]}
21. Qa2 {[%clk 0:01:18.5]} 21... Kh8 {[%clk 0:01:41.3]} 22. Ra6 {[%clk
0:01:15.1]} 22... Qc8 {[%clk 0:01:13.1]} 23. Ne7 {[%clk 0:00:56.4]} 23... Nxe7
{[%clk 0:01:01.7]} 24. Bxe6 {[%clk 0:00:56]} 24... Qxc3 {[%clk 0:01:01.2]} 25.
Rxd6 {[%clk 0:00:50]} 25... Bxe3 {[%clk 0:00:59.2]} 26. Rd7 {[%clk 0:00:45.2]}
26... Rb2 {[%clk 0:00:45.7]} 27. Qa4 {[%clk 0:00:28]} 27... Rbxf2 {[%clk
0:00:43.3]} 28. Rxf2 {[%clk 0:00:20.7]} 28... Qe1# {[%clk 0:00:41.8]} 0-1